Cogmind - Beta 15 @@@ ROGUE MODE // 2025.09.09 @ 13:20:47 Player: potator Result: Destroyed by AM-XET(R) with Subdweller Beam Cannon Performance ------------- Evolutions (0) 0 Regions Visited (2) 400 Robots Destroyed (15) 75 Value Destroyed (460) 460 Prototype IDs (1) 20 Alien Tech Used (0) 0 Bonus (0) 0 TOTAL SCORE: 955 Bonus ------- None Cogmind --------- Core Integrity 0/250 Matter 206/300 Energy 199/200 System Corruption 0% Temperature Hot (238) Movement Core (250) Ox4 Location -10/Subcaves Parts ------- > --- POWER (1+3) ------ Subdweller Power Source (+) > --- PROPULSION (2) --- Subdweller Monowheel > --- UTILITY (2) ------ Small Storage Unit Power Bank > --- WEAPON (2) ------- (None) > --- INVENTORY (8) ---- Structural Scanner Subdweller Optics Improved Terrain Scanner Targeting Computer Core Shielding Peak State ------------ > --- POWER ------------ Subdweller Power Source Subdweller Power Source > --- PROPULSION ------- Spiked Treads Subdweller Monowheel > --- UTILITY ---------- Small Storage Unit Power Bank > --- WEAPON ----------- Assault Rifle Light Cannon > --- INVENTORY -------- Structural Scanner Subdweller Optics Improved Terrain Scanner Targeting Computer Core Shielding Subdweller Shrapnel Launcher [Rating: 21] Favorites ----------- Power Light Ion Engine Engine Light Ion Engine Propulsion Light Treads Treads Light Treads Wheel Subdweller Monowheel Utility Small Storage Unit Device Structural Scanner Storage Small Storage Unit Processor Signal Interpreter Protection Core Shielding Weapon Assault Rifle Energy Gun EM Pulse Gun Ballistic Gun Assault Rifle Ballistic Cannon Light Cannon Launcher Subdweller Shrapnel Launcher Build | -11 -10 -10 ------- Run | Yrd Mat Sub Slots Evolved . | . . . Power . | . . . Propulsion . | . . . Utility . | . . . Weapon . | . . . Parts Attached 23 | 6 9 8 Power 4 | 1 1 2 Engine 4 | 1 1 2 Core . | . . . Reactor . | . . . Propulsion 7 | 2 2 3 Treads 5 | 2 2 1 Leg . | . . . Wheel 2 | . . 2 Hover . | . . . Flight . | . . . Utility 5 | 1 3 1 Device 2 | . 1 1 Storage 1 | 1 . . Processor 1 | . 1 . Hackware . | . . . Protection 1 | . 1 . Artifact . | . . . Weapon 7 | 2 3 2 Energy Gun 1 | 1 . . Energy Cannon . | . . . Ballistic Gun 4 | 1 2 1 Ballistic Cannon 1 | . 1 . Launcher 1 | . . 1 Special Weapon . | . . . Impact Weapon . | . . . Slashing Weapon . | . . . Piercing Weapon . | . . . Special Melee Weapon . | . . . Unidentified Prototypes 1 | . . 1 Parts Lost 15 | . 5 10 Power 3 | . 1 2 Propulsion 5 | . 2 3 Utility . | . . . Weapon 7 | . 2 5 Highest Loss Streak 6 | . 4 6 To Critical Strikes . | . . . Average Backups 3 | 3 2 5 Power . | . . . Propulsion . | . . . Utility 2 | . 1 4 Weapon . | 1 . 1 Tool/Special . | . . . Unused Backups 4 | . . 4 Power . | . . . Propulsion . | . . . Utility 3 | . . 3 Weapon 1 | . . 1 Tool/Special . | . . . Average Slot Usage (%) 87 | . 91 72 Engine 12 | . 12 12 Treads 21 | . 26 7 Wheel 2 | . . 10 Device 7 | . 5 10 Storage 13 | . 14 10 Protection 5 | . 7 . Energy Gun 4 | . 6 . Ballistic Gun 13 | . 13 12 Ballistic Cannon 5 | . 4 7 Peak Build Rating 21 | 6 7 21 Average Rating 8 | 1 6 16 On Entrance 4 | . 6 7 Naked Turns . | . . . Heaviest Build 23 | 12 14 23 Greatest Support 40 | 40 40 40 Greatest Overweight (x) 5 | . . 5 Average Overweight (x) . | . . . Largest Inventory Capacity 8 | 8 8 8 Average Capacity 7 | 5 8 8 Most Carried 7 | 5 5 7 Average Carried 3 | 3 2 5 Final Capacity 8 | 8 8 8 Final Carried 5 | . 5 5 Class Distribution -------------------- 100% | Mutant Dominant Class ---------------- Mutant | -10/Materials Mutant | -10/Subcaves Resources | -11 -10 -10 ----------- Run | Yrd Mat Sub Matter Collected 703 | 251 269 183 Remotely . | . . . Salvage Created 317 | . 244 73 Parts 25 | . 16 9 Haulers Intercepted . | . . . Recyclers Shooed . | . . . Parts Field Recycled . | . . . Retrieved Matter . | . . . Parts Self-Destructed 2 | . . 2 Prevented . | . . . Kills | -11 -10 -10 ------- Run | Yrd Mat Sub Combat Hostiles Destroyed 14 | . 10 4 Guns 1 | . . 1 Cannons 12 | . 10 2 AOE 1 | . . 1 Classes Destroyed 4 | . 3 1 Watcher 1 | . 1 . Swarmer 4 | . 3 1 Grunt 7 | . 7 . Subdweller 3 | . . 3 Best Kill Streak 5 | . 5 2 Combat Bots Only 5 | . 5 2 Max Kills in Single Turn 1 | . 1 1 Gunslinging . | . . . Exploded 1 | . . 1 Melee . | . . . Uniques/NPCs Destroyed . | . . . Combat | -11 -10 -10 -------- Run | Yrd Mat Sub Hostile Shots Fired 157 | . 81 76 Missed 44 | . 23 21 Hits 113 | . 58 55 Projectile 113 | . 58 55 Critical Strikes 4 | . 2 2 Damage Taken 2002 | . 835 1167 Core 267 | . 100 167 Absorbed by Shields . | . . . Redirected to Shielding 16 | . 16 . Core Remaining (%) 100 | 100 . . Volleys Fired 76 | . 43 33 Largest 2 | . 2 2 Hottest 60 | . 60 50 Shots Fired 111 | . 55 56 Gun 53 | . 16 37 Cannon 55 | . 39 16 Launcher 3 | . . 3 Special . | . . . Kinetic 108 | . 52 56 Thermal . | . . . Explosive . | . . . Electromagnetic 3 | . 3 . Robot Hit Streak 10 | . 10 10 Robot Miss Streak 9 | . 3 9 Penetration Max . | . . . Secondary Targets . | . . . Shots Hit Robots 74 | . 38 36 Core Hits 23 | . 15 8 Critical Kills . | . . . Critical Parts Destroyed 1 | . 1 . Critical Strikes 1 | . 1 . Destroy 1 | . 1 . Melee Attacks . | . . . Impact . | . . . Slashing . | . . . Piercing . | . . . Sneak Attacks . | . . . Combat Hostiles . | . . . Follow-up Attacks . | . . . Damage Inflicted 971 | . 657 314 Guns 233 | . 114 119 Cannons 593 | . 543 50 Explosions 145 | . . 145 Melee . | . . . Ramming . | . . . Kinetic 947 | . 633 314 Thermal . | . . . Explosive . | . . . Electromagnetic 24 | . 24 . Impact . | . . . Slashing . | . . . Piercing . | . . . Highest Corruption . | . . . Average Corruption . | . . . Corruption Purged . | . . . Corruption Blocked . | . . . Overload Shots . | . . . Overflow Damage 49 | . . 49 Projectiles . | . . . Explosions 49 | . . 49 Melee . | . . . Knockbacks 7 | . 6 1 Impact . | . . . Kinetic 6 | . 5 1 Secondary 1 | . 1 . Self-Inflicted Damage 165 | . . 165 Shots 3 | . . 3 Rammed . | . . . Targets Rammed . | . . . Kicked . | . . . Crushed . | . . . Highest Temperature 229 | . 22 229 Average Temperature 18 | . 9 229 Received Heat Transfer 800 | . 381 419 Siege Activations . | . . . Martial Activations . | . . . Shielding Activations . | . . . Robots Disrupted . | . . . Combat Hostiles . | . . . Robots Corrupted . | . . . Combat Hostiles . | . . . Parts Fried . | . . . Impact Corruptions . | . . . Robots Melted . | . . . Combat Hostiles . | . . . Parts Melted . | . . . Heat Transferred . | . . . Parts Sabotaged . | . . . Parts Stolen . | . . . Parts Stripped . | . . . Power Chain Reactions . | . . . Alert | -11 -10 -10 ------- Run | Yrd Mat Sub Maximum Alert Level . | . . . Low Security (%) 100 | 100 100 . Level 1 . | . . . Level 2 . | . . . Level 3 . | . . . Level 4 . | . . . Level 5 . | . . . High Security . | . . . Max Security . | . . . Peak Influence 171 | . 171 . Initial . | . . . Average 56 | . 58 . Influence Increases 471 | . 376 95 Destroy 0b10 Robot/C 220 | . 200 20 Destroy 0b10 Robot/NC 5 | . 5 . Destroy Leader 42 | . 42 . Successful Hack 39 | . 39 . Disable Machine 30 | . 30 . Lose Combat Pursuer 135 | . 60 75 Influence Decreases 471 | . 307 164 Entered New Map 34 | . . 34 Time Decay 412 | . 297 115 Lost Part 25 | . 10 15 Squads Dispatched 2 | . 2 . Investigation 2 | . 2 . Extermination . | . . . Reinforcement . | . . . Assault . | . . . Garrison . | . . . Intercept . | . . . Searches Triggered . | . . . Construction Impeded . | . . . Haulers Reinforced . | . . . Active Scanning Responses . | . . . Cargo Convoy Interrupts . | . . . Stealth | -11 -10 -10 --------- Run | Yrd Mat Sub Distress Signals 1 | . 1 . Communications Jammed . | . . . Distress Signals . | . . . Times Spotted 36 | . 25 11 Peak Tracking Total 6 | . 6 6 Tactical Retreats 4 | . 3 1 Traps | -11 -10 -10 ------- Run | Yrd Mat Sub Traps Triggered 2 | . 2 . Indirectly . | . . . Trap Hack Attempts . | . . . Triggered . | . . . Disarmed . | . . . Reprogrammed . | . . . Reused . | . . . Traps Extracted . | . . . Installed . | . . . Triggered . | . . . Machines | -11 -10 -10 ---------- Run | Yrd Mat Sub Machines Disabled 2 | . 2 . Max in Single Turn 1 | . 1 . Machines Repaired . | . . . Machines Dismantled . | . . . Machines Sabotaged . | . . . Overloaded Fab Kills . | . . . Hacking | -11 -10 -10 --------- Run | Yrd Mat Sub Machines Accessed 4 | . 4 . Terminals 4 | . 4 . Fabricators . | . . . Repair Stations . | . . . Recycling Units . | . . . Scanalyzers . | . . . Garrison Access . | . . . Total Hacks 13 | . 13 . Successful 9 | . 9 . Failed 4 | . 4 . Catastrophic . | . . . Database Lockouts . | . . . Manual 3 | . 3 . Terminals 13 | . 13 . Fabricators . | . . . Repair Stations . | . . . Recycling Units . | . . . Scanalyzers . | . . . Garrison Access . | . . . Terminal Hacks 9 | . 9 . Emergency Access Points 2 | . 2 . Alert Level 1 | . 1 . Locate Traps 1 | . 1 . Security Status 1 | . 1 . Patrol Status 1 | . 1 . Investigation Status 1 | . 1 . Recall Investigation 1 | . 1 . Registered Components 1 | . 1 . Fabricator Hacks . | . . . Repair Station Hacks . | . . . Recycling Unit Hacks . | . . . Scanalyzer . | . . . Garrison Access Hacks . | . . . Unauthorized Hacks . | . . . Terminals . | . . . Fabricators . | . . . Repair Stations . | . . . Recycling Units . | . . . Scanalyzers . | . . . Garrison Access . | . . . Data Cores Recovered . | . . . Used . | . . . Hacking Detections 2 | . 2 . Full Trace Events . | . . . Feedback Events . | . . . Feedback Blocked . | . . . Robot Schematics Acquired . | . . . Robots Built . | . . . Authchips . | . . . Time . | . . . Total Robot Build Rating . | . . . Part Schematics Acquired . | . . . Parts Built . | . . . Authchips . | . . . Time . | . . . Total Part Build Rating . | . . . Parts Repaired . | . . . Time . | . . . Parts Recycled . | . . . Recycled Matter . | . . . Retrieved Matter . | . . . Retrieved Components . | . . . Parts Scanalyzed . | . . . Part Schematics Acquired . | . . . Parts Damaged . | . . . Bothacking | -11 -10 -10 ------------ Run | Yrd Mat Sub Used RIF Installer . | . . . Robots Hacked . | . . . Non-combat . | . . . Combat . | . . . Robot Hacks Applied . | . . . Relay Couplers Released . | . . . Fabnet Peak Effective % . | . . . Robots Rewired . | . . . Allies Hacked . | . . . Hacks Repelled . | . . . Allies | -11 -10 -10 -------- Run | Yrd Mat Sub Total Allies . | . . . Largest Group . | . . . Highest-Rated Group . | . . . Highest-Rated Ally . | . . . Total Orders . | . . . Ally Attacks . | . . . Total Damage . | . . . Kills . | . . . Allies Corrupted . | . . . Allies Melted . | . . . Intel | -11 -10 -10 ------- Run | Yrd Mat Sub Active Infowar (turns) 715 | . 629 86 Structural 715 | . 629 86 Robot Analysis Total . | . . . Derelict Logs Recovered . | . . . Drone Launches . | . . . Drone Recoveries . | . . . Exploration | -11 -10 -10 ------------- Run | Yrd Mat Sub Turns Passed 2035 | 55 1488 492 Spaces Moved 1112 | 38 836 238 Core 33 | 15 . 18 Treads 944 | 23 836 85 Legs . | . . . Wheels 135 | . . 135 Hover . | . . . Flight . | . . . Fastest Speed 50 | 50 160 110 Average Speed 157 | 116 160 157 Slowest Speed 300 | 160 160 300 Overloaded Moves . | . . . Propulsion Burnouts . | . . . Robots Hopped . | . . . Potential Cave-ins . | . . . Cave-ins Triggered . | . . . Exploration Rate (%) 40 | 4 99 17 Regions Visited 2 Branch Regions 1 Pre-discovered Areas . | . . . Known Exits Taken . | . . . Unknown Exits Taken 2 | 1 1 . Scrap Searched 3 | . . 3 Spaces Dug . | . . . Terrain Destroyed 41 | . . 41 Melee . | . . . Projectile . | . . . AOE 41 | . . 41 Terrain Rammed . | . . . Walls Destroyed . | . . . Machines Disabled . | . . . Actions | -11 -10 -10 --------- Run | Yrd Mat Sub Total 1279 | 48 930 301 Wait 41 | . 31 10 Move 1110 | 37 835 238 Hop . | . . . Pick Up 26 | 5 12 9 Fast Attach 1 | 1 . . Attach 18 | 5 6 7 Detach . | . . . Swap 5 | . 3 2 Drop 2 | . . 2 Fire 76 | . 43 33 Melee . | . . . Ram . | . . . Kick . | . . . Crush . | . . . Escape Stasis . | . . . Rewire . | . . . Trap . | . . . Miscellaneous . | . . . Route ------- -11/Scrapyard -10/Materials (discovered 5 exits: *Mat x3 / [*Min] / [*Sub]) -10/Subcaves (discovered 2 exits: [*Mat] / [*Rec]) History --------- Turn | Location | Event 12 | -11/Scrapyard | Discovered new exit (range 15) 56 | -11/Scrapyard | Entered Materials 257 | -10/Materials | Discovered new exit (range 8) 303 | -10/Materials | Build established: Mutant 543 | -10/Materials | Discovered new exit (range 13) 556 | -10/Materials | Derelicts attacked the area 780 | -10/Materials | Lost 4 parts (2n2w) 825 | -10/Materials | Discovered new exit (range 11) 901 | -10/Materials | Identified exit to Materials 1446 | -10/Materials | Discovered exit to Materials (range 16) 1520 | -10/Materials | Discovered new exit (range 16) 1544 | -10/Materials | Entered Subcaves 1545 | -10/Subcaves | Shifting Twisted Machinery released Sub. Shrapnel Launcher 1560 | -10/Subcaves | Shifting Twisted Machinery released Sub. Machine Gun 1584 | -10/Subcaves | A Subdweller sparked back to life 1584 | -10/Subcaves | A Subdweller sparked back to life 1584 | -10/Subcaves | A Subdweller sparked back to life 1602 | -10/Subcaves | Core integrity fell below 50% 1617 | -10/Subcaves | Core integrity fell below 20% 1629 | -10/Subcaves | Found Prototype Device 1630 | -10/Subcaves | Identified Power Bank 1631 | -10/Subcaves | Attached Power Bank, gained temporary slots: Power x3 1639 | -10/Subcaves | Lost 4 parts (1p2n1w) 1752 | -10/Subcaves | Discovered new exit (range 16) 1756 | -10/Subcaves | Discovered new exit (range 11) 2036 | -10/Subcaves | Destroyed by AM-XET(R) with Subdweller Beam Cannon Last Messages --------------- Searching scrap... Found Sub. Power Source. Found Sub. Shrapnel Launcher. Found 39 Matter. Acquired Sub. Power Source. Acquired 10 matter. Subatomizers dissect the Sub. Shrapnel Launcher. Lgt. Cannon destroyed. Assault Rifle destroyed. Spk. Treads destroyed. M4-3CU(R) destroyed. Sub. Shrapnel Launcher destroyed. Destroyed Sub. Shrapnel Launcher. Sub. Power Source destroyed. Destroyed Sub. Power Source. Acquired 10 matter. Acquired Battle Rifle. AM-XET(R) emerges from concealment. Critical hit (Meltdown: +260). Battle Rifle destroyed. Map ----- +----------------------------------------------------+ | ?????????????????????????????????????????????????? | | ?????????????????????????????????????????????????? | | ?????????????????????????????????????????????????? | | ?????????????????????????????????????????????????? | | ?????????????????????????????????????????????????? | | ?????????????????????????????????????????????????? | | ?????????????????????????????????????????????????? | | ?????????????????????????????????????????????????? | | ?????????????????????????????????????????????????? | | ???###???????????????????????????????????????????? | | ??? "#???????????????????????????????????????????? | | ???""#???????????????????????????????????????????? | | ###]"#???????????????????????????????????????????? | | "%% "#????????????????##?????????????????????????? | | = #????????????#### ?????????????????????????? | | "##???????????##"""""?????????????????????????? | | " "##????????????# ????????????????????????? | | #######??????????# " ??????????? ???????????? | | ### #?????????## " "#?????????? ??????????? | | ##??????### " #??####?? ??????????? | | ## #?????## "" ####;;;#? ???????????? | | #???### ";# ; ;# #????????????? | | #??## ; #?????????????? | | ##### #??????????????? | | ### R #??????????????? | | # @ R #?????????????? | | #### ;## #????????????? | | ## # ;##??????#????????????? | | ### ##????????????????????? | | ### ##?# ; ; #?????????????????????? | | ### #?####??#### ######?????????????????????? | | #?########??????????##???????????????????????????? | | #????????????????????????????????????????????????? | | #????????????????????????????????????????????????? | | ?????????????????????????????????????????????????? | | ?????????????????????????????????????????????????? | | ?????????????????????????????????????????????????? | | ?????????????????????????????????????????????????? | | #????????????????????????????????????????????????? | | ###??????????????????????????????????????????????? | | ###??????????????????????????????????????????????? | | ##??????????????????????????????????????????????? | | ##??????????????????????????????????????????????? | | ##??????????????????????????????????????????????? | | ##??????????????????????????????????????????????? | | ##??????????????????????????????????????????????? | | ##??????????????????????????????????????????????? | | ##??????????????????????????????????????????????? | | ##??????????????????????????????????????????????? | | ###??????????????????????????????????????????????? | +----------------------------------------------------+ Best States ------------- Heat Dissipation 25 Energy Generation 25 Energy Capacity 300 Matter Stores 300 Matter Capacity 300 Sight Range 16 Terrain Scan Density 10 Core Shielding 20 Evasion (%) 50 Recoil Reduction 2 Item Schematics ----------------- None Robot Schematics ------------------ None Fabricated ------------ Nothing Repaired ---------- Nothing Alien Tech Used ----------------- None Achievements -------------- None Challenges ------------ None Game ------ Seed ReactionUtilityExpander Manual? 0 Play Time 00:16:15 Cumulative 20.6 hours Start 2025.09.09 @ 13:04:54 End 2025.09.09 @ 13:20:47 Sessions 1 Manual Loads 0 Difficulty Rogue Special Mode None Game No. 47 Rogue 47 Adventurer 0 Explorer 0 Win Type - Total 0 Types 0/0/0/0/0/0/0/0/0/0 Lore% 10 Gallery% 17 Achievement% 17 Wizard Run 0 Options --------- Layout 1 ASCII 0 Keyboard 0 Movement Mouse Keybinds 0 Fullscreen 2 Font 24/Smallcaps Map View 50x35 Zoom Use 0% Tactical HUD 0 Map Filters NONE Filters NONE Steam 1 RUN: f62cd087-ee8c-458c-896a-76ab066ed0b6